bitfinex/quotes_ETHUSD_20250115
["timestamp","ask_amount","ask_price","bid_price","bid_amount"]
[1736943846557,3.1311,3193.8,3193.0,0.8107]
[1736943846759,3.1311,3193.8,3193.2,0.8107]
[1736943847050,3.17024207,3193.8,3193.2,0.8107]
[1736943848018,0.03914207,3193.8,3193.2,0.8107]
[1736943848221,0.03914207,3193.8,3193.2,0.9887]
[1736943848541,3.0,3193.9,3193.4,0.8107]
[1736943848754,3.13048,3194.4,3193.5,0.57661935]
[1736943848755,3.13062,3194.3,3193.5,0.57661935]
[1736943849066,3.13088,3194.0,3193.4,0.8107]
[1736943849230,3.03913986,3194.2,3193.4,0.8107]
[1736943849431,0.03913853,3194.1,3193.4,0.8107]
[1736943849655,6.1698185,3194.2,3193.4,0.8107]
[1736943849816,0.03913764,3194.1,3193.4,0.8107]
[1736943850351,3.16993764,3194.1,3193.4,1.20759642]
[1736943850553,3.13088,3194.0,3193.4,0.8107]
[1736943851066,0.03913817,3193.9,3193.4,0.8107]
[1736943851255,3.13114,3193.8,3193.4,0.8107]
[1736943851437,0.03914134,3193.7,3193.4,0.8107]
[1736943851624,3.0,3193.6,3193.0,0.8107]
[1736943851820,3.13157,3193.3,3193.0,0.8107]
[1736943852061,3.13147,3193.4,3193.0,0.8107]
[1736943852258,0.03914724,3193.3,3193.0,0.8107]
[1736943852433,3.13147,3193.4,3193.0,0.8107]
[1736943852636,3.1313,3193.6,3193.0,0.8107]
[1736943852830,3.0,3193.7,3193.0,0.8107]
[1736943853243,0.03914188,3193.6,3193.0,0.8107]
[1736943854879,6.13123,3193.7,3193.0,0.8107]
[1736943855238,3.13143,3193.5,3193.0,0.8107]
[1736943855438,3.17060503,3193.4,3193.0,0.8107]
[1736943855879,3.13158,3193.3,3193.0,0.8107]
[1736943856186,3.13175,3193.1,3192.8,0.8107]
[1736943858581,0.03914865,3193.4,3192.8,0.8107]
[1736943858881,0.03914865,3193.4,3192.6,0.178]
[1736943858882,2.975521,3194.2,3193.1,0.55]
[1736943859076,0.03913995,3193.9,3193.2,0.8107]
[1736943859287,3.13097,3193.9,3193.2,0.8107]
[1736943859479,0.03913995,3193.8,3193.2,0.8107]
[1736943859682,3.13097,3193.9,3193.2,0.8107]
[1736943860259,0.03913995,3193.8,3193.2,0.8107]
[1736943860460,3.13116,3193.7,3193.2,0.8107]
[1736943860781,3.17041282,3193.6,3193.2,0.8107]
[1736943862269,3.13127,3193.6,3193.2,0.8107]
[1736943862661,0.35615306,3193.8,3193.2,0.8107]
[1736943862870,3.48727306,3193.8,3193.2,0.8107]
[1736943865687,0.34872731,3193.7,3193.2,0.8107]
[1736943865880,3.13136,3193.5,3193.2,0.8107]
[1736943866877,0.03914406,3193.4,3193.2,0.8107]
[1736943867100,3.13136,3193.5,3193.2,0.8107]
[1736943867404,0.03914575,3193.4,3193.2,0.8107]
[1736943867778,3.17067575,3193.4,3193.2,0.8107]
[1736943868009,3.48774333,3193.4,3193.0,0.8107]
[1736943868370,1.15751333,3193.4,3192.5,0.8107]
[1736943868570,3.13171,3193.2,3192.5,0.8107]
[1736943868806,0.0391486,3193.1,3192.5,0.8107]
[1736943870175,3.13212,3192.8,3192.5,0.8107]
[1736943870380,3.17130407,3192.7,3192.5,0.8107]
[1736943870609,3.13225,3192.6,3192.4,4.2e-06]
[1736943871102,0.03915648,3192.5,3192.4,4.2e-06]
[1736943871407,0.313212,3192.8,3192.4,4.2e-06]
[1736943871569,3.445312,3192.8,3192.4,4.2e-06]
[1736943872110,0.313212,3192.8,3192.4,4.2e-06]
[1736943872308,3.13186,3193.0,3192.4,4.2e-06]
[1736943872602,3.13186,3193.0,3192.5,0.8107]
[1736943873193,0.03915182,3192.9,3192.5,0.8107]
[1736943874223,3.13198,3192.9,3192.5,0.8107]
[1736943874410,6.13167,3193.2,3192.4,4.2e-06]
[1736943874411,0.03915185,3192.8,3192.4,4.2e-06]
[1736943874614,3.13234,3192.5,3192.4,4.2e-06]
[1736943881355,6.13234,3192.5,3192.4,4.2e-06]
[1736943881541,6.17150162,3192.5,3192.4,4.2e-06]
[1736943882722,6.13234,3192.5,3192.4,4.2e-06]
[1736943882924,3.0,3192.5,3192.4,4.2e-06]
[1736943883325,6.43625583,3192.5,3192.4,4.2e-06]
[1736943884338,1.12926729,3192.8,3192.4,4.2e-06]
[1736943884560,3.13225,3192.6,3192.4,4.2e-06]
[1736943885138,3.17149816,3192.5,3192.4,4.2e-06]
[1736943885350,3.17149816,3192.5,3192.4,0.7943042]
[1736943886041,0.30146729,3192.8,3192.4,0.7943042]
[1736943886246,0.34334373,3192.7,3192.4,0.7943042]
[1736943886556,3.13226,3192.6,3192.4,0.7943042]
[1736943887475,0.30146729,3192.8,3192.4,0.7943042]
[1736943887625,2.975521,3193.3,3192.4,0.7943042]
[1736943887828,3.17082066,3193.2,3192.4,0.7943042]
[1736943888092,6.106811,3193.6,3192.6,3.13217]
[1736943888093,3.1313,3193.6,3192.6,3.13217]
[1736943888345,3.1313,3193.6,3192.8,0.7943]
[1736943888525,0.03914575,3193.5,3192.8,3.92632]
[1736943889851,0.03914575,3193.5,3192.8,3.13202]
[1736943890057,2.975521,3194.0,3193.0,0.55]
[1736943890342,3.13103,3193.9,3193.1,3.15836268]
[1736943890643,3.13078,3194.1,3193.3,0.8012]
[1736943890795,3.13078,3194.1,3193.4,0.02661561]
[1736943890997,3.13078,3194.1,3193.5,0.8012]
[1736943891947,0.03913898,3194.0,3193.5,0.8012]
[1736943892493,3.0,3194.2,3193.5,0.8012]
[1736943892725,3.826614,3194.2,3193.5,0.8012]
[1736943893832,3.13082,3194.1,3193.5,0.8012]
[1736943894033,3.16995771,3194.1,3193.5,0.56910789]
[1736943894411,0.03913771,3194.1,3193.5,0.56910789]
[1736943894617,3.13055,3194.4,3193.6,0.026611]
[1736943894793,3.13058,3194.3,3193.6,0.026611]
[1736943895845,3.13043,3194.5,3193.6,0.576611]
[1736943896059,3.16956421,3194.5,3193.6,3.707861]
[1736943896396,3.16956421,3194.5,3193.8,3.13103]
[1736943896397,0.03913421,3194.5,3193.8,3.13103]
[1736943896600,3.12993,3195.0,3194.1,0.55]
[1736943896847,3.442923,3195.0,3194.2,0.02659516]
[1736943897002,0.312993,3195.0,3194.3,0.8012]
[1736943897197,0.62774106,3195.6,3194.5,0.8012]
[1736943897700,0.03912429,3195.5,3194.7,0.8012]
[1736943898742,3.12961,3195.3,3194.7,0.8012]
[1736943899047,0.03912247,3195.2,3194.7,0.8012]
[1736943899441,3.804321,3195.1,3194.3,0.181]
[1736943899753,0.73644881,3195.0,3194.3,0.181]
[1736943900112,0.73644881,3195.0,3194.1,0.9822]
[1736943900317,0.73644881,3195.0,3194.1,0.8012]
[1736943900555,3.13024,3194.7,3194.1,0.8012]
[1736943900717,0.03913204,3194.6,3194.1,0.8012]
[1736943900911,0.35606924,3194.6,3194.1,0.8012]
[1736943901125,0.69731935,3195.0,3194.2,0.55]
[1736943901126,0.03913201,3194.9,3194.2,0.55]
[1736943901337,0.03913201,3194.9,3194.1,0.8012]
[1736943901653,3.1301,3194.8,3194.1,0.8012]
[1736943901811,0.03912971,3194.7,3194.1,0.8012]
[1736943902017,3.16905968,3195.0,3194.1,0.8012]
[1736943902235,3.74446807,3194.9,3194.1,0.8012]
[1736943902435,3.74446807,3194.9,3194.2,0.02659729]
[1736943902636,0.61445807,3194.9,3194.3,0.798]
[1736943903053,0.039128,3195.0,3194.3,0.798]
[1736943903227,3.068868,3195.2,3194.4,0.0313017]
[1736943904222,3.068868,3195.2,3194.3,3.92855]
[1736943904850,3.068868,3195.2,3194.3,0.798]
[1736943905351,3.13021,3194.7,3194.3,0.798]
[1736943906454,3.13095,3194.0,3193.7,0.7976]
[1736943906657,2.975521,3194.1,3193.1,0.7976]
[1736943906871,3.13096,3193.9,3193.1,0.7976]
[1736943907056,3.13125,3193.7,3193.1,0.7976]
[1736943907255,3.13131,3193.6,3193.1,0.7976]
[1736943907460,3.13096,3193.9,3193.1,0.7976]
[1736943907686,3.13158,3193.3,3192.7,7.43747266]
[1736943908843,3.1314,3193.5,3192.7,7.43747266]
[1736943909479,3.13148,3193.4,3192.7,0.9786]
[1736943909783,3.89167,3193.7,3192.7,0.9786]
[1736943909784,3.7605,3193.7,3192.7,0.9786]
[1736943909991,3.0,3193.4,3192.4,0.7976042]
[1736943910284,3.13214,3192.8,3192.4,0.7976042]
[1736943912269,3.13186,3193.0,3192.4,0.7976042]
[1736943913147,3.7497127,3193.2,3192.4,0.7976042]
[1736943915084,3.13124,3193.7,3192.7,3.68213]
[1736943915263,3.13124,3193.7,3192.9,0.7976]
[1736943915456,3.13124,3193.7,3193.0,0.031316]
[1736943915655,3.13124,3193.7,3192.9,0.7976]
[1736943916480,3.68426869,3193.7,3192.9,0.7976]
[1736943916781,3.13155,3193.4,3192.9,0.7976]
[1736943918153,3.13129,3193.6,3192.9,0.7976]
[1736943918879,3.13154,3193.4,3192.8,0.181]
[1736943920455,3.13156,3193.3,3192.8,0.181]
[1736943921457,3.13138,3193.5,3192.8,0.181]
[1736943922071,3.13138,3193.5,3192.9,0.7942]
[1736943922243,0.8163,3194.1,3192.9,0.82551801]
[1736943922442,1.1954821,3194.1,3192.9,0.82551801]
[1736943923057,3.13087,3194.0,3192.9,0.82551801]
[1736943923272,3.13104,3193.9,3192.9,0.82551801]
[1736943924165,3.13087,3194.0,3192.9,0.82551801]
[1736943924371,3.13136,3193.5,3192.9,0.7942]
[1736943924590,3.13149,3193.4,3192.9,0.7942]
[1736943925203,0.313149,3193.4,3192.9,0.7942]
[1736943925343,3.13175,3193.1,3192.5,0.7942]
[1736943925549,3.13192,3193.0,3192.5,0.7942]
[1736943926707,3.0,3193.3,3192.5,0.7942]
[1736943927370,3.13183,3193.1,3192.5,0.7942]
[1736943927557,3.13186,3193.0,3192.5,0.7942]
[1736943929321,3.13177,3193.1,3192.5,0.7942]
[1736943930027,3.13162,3193.3,3192.6,0.03131999]
[1736943931228,3.13137,3193.5,3192.7,0.7942]
[1736943931437,3.13099,3193.9,3193.1,0.7942]
[1736943931721,3.13082,3194.1,3193.3,0.7942]
[1736943931937,0.61699884,3194.2,3193.3,0.7942]
[1736943932090,3.13087,3194.0,3193.3,0.7942]
[1736943932612,3.13101,3193.9,3193.3,0.7942]
[1736943933302,3.13085,3194.1,3193.3,0.7942]
[1736943933501,6.13064,3194.3,3193.3,1.205095]
[1736943933739,3.13117,3193.7,3193.3,0.7942]
[1736943934101,3.0,3194.3,3193.3,0.7942]
[1736943934102,6.106291,3194.1,3193.3,0.7942]
[1736943934350,3.13125,3193.7,3193.3,0.7942]
[1736943934526,3.13128,3193.6,3193.3,0.7942]
[1736943935411,0.7713,3193.7,3192.9,0.8033]
[1736943935646,3.13155,3193.4,3192.9,0.8033]
[1736943935990,3.1316,3193.3,3192.9,0.8033]
[1736943936295,3.1316,3193.3,3192.6,0.183]
[1736943936296,2.975521,3193.5,3192.6,0.9863]
[1736943936650,6.13129,3193.6,3192.6,0.8033]
[1736943936651,3.13214,3192.7,3192.6,0.8033]
[1736943936866,6.13129,3193.6,3192.4,4.2e-06]
[1736943936867,3.0,3192.8,3192.4,4.2e-06]
[1736943936997,3.13234,3192.5,3192.4,4.2e-06]
[1736943937951,3.1322,3192.7,3192.4,4.2e-06]
[1736943941040,2.975521,3193.2,3192.4,4.2e-06]
[1736943941244,0.2975521,3193.2,3192.5,0.8033]
[1736943941444,3.13199,3192.9,3192.5,0.8033]
[1736943941600,6.107201,3193.2,3192.5,0.8033]
[1736943941801,3.13202,3192.9,3192.5,0.8033]
[1736943942725,3.13222,3192.7,3192.4,4.2e-06]
[1736943943040,3.13229,3192.6,3192.4,4.2e-06]
[1736943943333,3.13217,3192.7,3192.4,4.2e-06]
[1736943943650,3.13224,3192.6,3192.4,4.2e-06]
[1736943944472,3.1321,3192.8,3192.4,4.2e-06]
[1736943945267,4.37773066,3193.3,3192.4,4.2e-06]
[1736943945268,3.13185,3193.0,3192.4,4.2e-06]
[1736943945825,3.13185,3193.0,3192.5,0.8033]
[1736943946227,0.63090966,3193.3,3192.5,0.8033]
[1736943946475,3.13175,3193.1,3192.5,0.8033]
[1736943946779,0.63090966,3193.3,3192.5,0.8033]
[1736943946780,3.13204,3192.9,3192.5,0.8033]
[1736943947080,3.60643066,3193.3,3192.5,0.8033]
[1736943947229,3.13175,3193.1,3192.5,0.8033]
[1736943947429,3.13211,3192.8,3192.5,0.8033]
[1736943949071,3.0,3193.2,3192.5,0.8033]
[1736943949275,0.7713,3193.5,3192.5,0.8033]
[1736943949429,3.1316,3193.3,3192.5,0.8033]
[1736943949629,3.13145,3193.4,3192.5,1.19687742]
[1736943949830,4.40928074,3193.5,3192.5,0.8033]
[1736943950173,3.13175,3193.1,3192.5,0.8033]
[1736943950373,3.0,3193.2,3192.5,0.8033]
[1736943950735,3.13192,3193.0,3192.5,0.8033]
[1736943951174,6.13173,3193.2,3192.5,0.8033]
[1736943951346,3.13209,3192.8,3192.5,0.8033]
[1736943953477,3.926331,3193.2,3192.5,0.8033]
[1736943953700,3.13215,3192.7,3192.5,0.8033]
[1736943955777,3.95857,3193.0,3192.4,4.2e-06]
[1736943955979,3.13224,3192.6,3192.4,4.2e-06]
[1736943957291,0.8267,3193.0,3192.4,4.2e-06]
[1736943957459,3.13234,3192.5,3192.4,4.2e-06]
[1736943959671,3.445574,3192.5,3192.4,4.2e-06]
[1736943961299,3.13227,3192.6,3192.4,4.2e-06]
[1736943963395,3.13234,3192.5,3192.4,4.2e-06]
[1736943963696,6.7690054,3192.9,3192.4,4.2e-06]
[1736943964204,3.13234,3192.5,3192.4,4.2e-06]
[1736943967603,3.90944,3192.5,3192.4,4.2e-06]
[1736943967929,4.300384,3192.5,3192.4,4.2e-06]
[1736943969880,3.523284,3192.5,3192.4,4.2e-06]
[1736943970513,3.13234,3192.5,3192.4,4.2e-06]
[1736943974017,3.90944,3192.5,3192.4,4.2e-06]
[1736943974576,3.13234,3192.5,3192.4,4.2e-06]
[1736943979026,3.90944,3192.5,3192.4,4.2e-06]
[1736943979436,3.13234,3192.5,3192.4,4.2e-06]
[1736943979599,6.75879,3192.5,3192.4,4.2e-06]
[1736943979926,8.08589,3192.5,3192.4,4.2e-06]
[1736943989061,7.53589,3192.5,3192.4,4.2e-06]
[1736943989231,10.511411,3192.5,3192.4,4.2e-06]
[1736943990967,6.734311,3192.5,3192.4,4.2e-06]
[1736943991126,9.107861,3192.5,3192.4,4.2e-06]
[1736943991764,6.13234,3192.5,3192.4,4.2e-06]
[1736943993358,3.13234,3192.5,3192.4,4.2e-06]
[1736943993771,6.13223,3192.7,3192.4,4.2e-06]
[1736943993931,3.0,3192.7,3192.4,4.2e-06]
[1736943994953,3.13232,3192.6,3192.4,4.2e-06]
[1736943995151,3.13234,3192.5,3192.4,4.2e-06]
[1736943998603,3.0,3192.7,3192.4,4.2e-06]
[1736943998763,6.13218,3192.7,3192.4,4.2e-06]
[1736943998969,3.13225,3192.6,3192.4,4.2e-06]
[1736943999350,3.53991634,3192.5,3192.4,4.2e-06]
[1736943999547,3.13224,3192.6,3192.5,0.7802]
[1736944000486,3.13234,3192.5,3192.4,4.2e-06]
[1736944001694,0.6370254,3192.9,3192.4,4.2e-06]
[1736944002872,3.13214,3192.7,3192.4,4.2e-06]
[1736944003369,3.13207,3192.8,3192.4,4.2e-06]
[1736944004200,3.13217,3192.7,3192.4,4.2e-06]
[1736944005661,0.6370254,3192.9,3192.4,4.2e-06]
[1736944005869,3.13234,3192.5,3192.4,4.2e-06]
[1736944012206,2.815951,3192.5,3192.4,4.2e-06]
[1736944013029,5.791472,3192.5,3192.4,4.2e-06]
[1736944013194,8.791472,3192.5,3192.4,4.2e-06]
[1736944013708,5.815951,3192.5,3192.4,4.2e-06]
[1736944013913,6.4771861,3192.5,3192.4,4.2e-06]
[1736944014490,5.815951,3192.5,3192.4,4.2e-06]
[1736944020927,0.8162,3193.3,3192.4,0.8133042]
[1736944021250,0.8162,3193.6,3192.4,0.9923042]
[1736944021453,0.563021,3194.7,3192.4,0.9923042]
[1736944021454,3.1312,3193.7,3192.6,0.8133]
[1736944021654,3.0,3193.6,3192.8,0.8133]
[1736944021960,3.0,3193.6,3192.9,0.8133]
[1736944022158,3.13128,3193.6,3193.0,0.394533]
[1736944022548,3.13128,3193.6,3192.9,0.8133]
[1736944023642,3.13146,3193.4,3192.9,0.8133]
[1736944024644,0.62224202,3193.7,3192.9,0.8133]
[1736944024842,3.13131,3193.6,3192.9,0.8133]
[1736944025068,3.13137,3193.5,3192.9,0.8133]
[1736944028672,3.75342202,3193.7,3192.9,0.8133]
[1736944028885,3.13118,3193.7,3192.9,0.8133]
[1736944029088,3.13108,3193.8,3193.1,0.8195]
[1736944029886,3.76391315,3193.8,3193.1,0.8195]
[1736944030742,3.13108,3193.8,3193.1,0.8195]
[1736944031569,3.13098,3193.9,3193.1,0.8508156]
[1736944031954,3.804621,3194.5,3193.1,0.8508156]
[1736944032173,3.13067,3194.2,3193.3,0.8255]
[1736944032473,3.0,3194.1,3193.3,1.0045]
[1736944032968,3.1309,3194.0,3193.3,1.0045]
[1736944033177,3.13145,3193.4,3192.7,0.8255]
[1736944033483,3.13174,3193.2,3192.7,0.8255]
[1736944033892,3.13133,3193.6,3192.7,0.8255]
[1736944034185,3.13114,3193.8,3193.0,0.8255]
[1736944034354,3.13114,3193.8,3192.9,3.13186]
[1736944034355,3.13114,3193.8,3193.2,0.8255]
[1736944034557,3.0,3194.1,3193.2,0.8255]
[1736944034743,3.13117,3193.7,3193.2,0.8255]
[1736944034945,3.13102,3193.9,3193.2,0.8255]
[1736944037297,0.61877856,3194.2,3193.2,0.8255]
[1736944037604,0.61877856,3194.2,3193.1,3.03131321]
[1736944037605,0.8291,3195.5,3194.3,0.8255]
[1736944037890,3.0,3195.4,3194.4,7.110481]
[1736944038058,3.12951,3195.4,3194.5,0.85680061]
[1736944038258,3.12951,3195.4,3194.5,0.8255]
[1736944038501,3.12951,3195.4,3194.5,0.85679984]
[1736944038714,3.75772411,3195.6,3194.7,0.8255]
[1736944039005,3.0,3195.5,3194.7,0.8255]
[1736944039392,0.64050396,3195.9,3194.7,0.8255]
[1736944039703,3.95806,3196.0,3194.7,0.8255]
[1736944039704,3.12895,3196.0,3195.1,0.8255]
[1736944039906,6.12907,3195.9,3195.1,0.8255]
[1736944040219,6.741977,3195.9,3195.1,0.8255]
[1736944040807,3.12911,3195.8,3195.1,0.8255]
[1736944042212,3.12918,3195.8,3195.1,0.8255]
[1736944042414,3.12921,3195.7,3195.1,0.8255]
[1736944042837,3.741937,3195.9,3195.1,0.8255]
[1736944044000,0.61666074,3196.1,3195.1,1.22417059]
[1736944044337,3.0,3196.0,3195.2,0.85679586]
[1736944044497,3.12894,3196.0,3195.2,0.85679586]
[1736944044928,0.8291,3196.4,3195.3,3.12959]
[1736944044929,4.4405854,3196.4,3195.3,3.12959]
[1736944045243,3.12861,3196.3,3195.5,0.8255]
[1736944045544,1.4405854,3196.4,3195.5,0.8255]
[1736944045545,3.12873,3196.2,3195.5,0.8255]
[1736944045900,1.4405854,3196.4,3195.5,0.8255]
[1736944046205,3.12882,3196.1,3195.5,0.8255]
[1736944046804,3.12891,3196.0,3195.5,0.8255]
[1736944047042,3.12891,3196.0,3195.0,2.975521]
[1736944047043,3.8291,3195.8,3195.0,0.8255]
[1736944047217,3.12972,3195.2,3195.0,0.8255]
[1736944047413,3.12951,3195.4,3195.0,0.8255]
[1736944047766,3.12938,3195.6,3195.0,0.8255]
[1736944047904,3.12919,3195.8,3195.0,0.8255]
[1736944048251,3.12933,3195.6,3195.0,0.8255]
[1736944050144,3.12945,3195.5,3195.0,0.8255]
[1736944051104,3.12931,3195.6,3195.0,0.8255]
[1736944052719,3.1295,3195.4,3195.0,0.8255]
[1736944059472,0.31295,3195.3,3194.7,0.7668]
[1736944059635,0.781,3195.5,3194.7,0.7668]
[1736944059636,3.12977,3195.2,3194.7,0.7668]
[1736944059833,3.1298,3195.1,3194.7,0.7668]
[1736944060073,3.0,3195.4,3194.7,0.7668]
[1736944060474,3.13008,3194.8,3194.3,0.7668]
[1736944061013,0.781,3195.2,3194.3,0.7668]
[1736944061181,0.391059,3195.1,3194.3,0.7668]
[1736944061334,3.13,3194.9,3194.3,0.7668]
[1736944062177,3.13011,3194.8,3194.3,0.7668]
[1736944062680,3.13021,3194.7,3194.3,0.7668]
[1736944063383,3.13032,3194.6,3194.3,0.7668]
[1736944064641,3.13011,3194.8,3194.3,0.7668]
[1736944064857,3.13019,3194.7,3194.3,0.7668]
[1736944066203,0.313019,3194.7,3194.3,0.7668]
[1736944066361,3.13042,3194.5,3193.8,0.18]
[1736944067594,3.13042,3194.5,3193.9,0.7668]
[1736944067865,0.781,3195.0,3193.9,0.7668]
[1736944068100,3.13014,3194.8,3193.9,0.79810817]
[1736944068476,3.13014,3194.8,3194.0,0.8191]
[1736944070012,3.13023,3194.7,3194.0,0.8191]
[1736944070916,3.13031,3194.6,3194.0,0.8191]
[1736944072206,3.13039,3194.5,3194.0,0.8191]
[1736944072919,3.1306,3194.3,3194.0,0.8191]
[1736944074014,3.13008,3194.8,3194.0,0.8191]
[1736944074231,3.13036,3194.6,3194.0,0.8191]
[1736944074598,3.13039,3194.5,3194.0,0.8191]
[1736944076619,3.13052,3194.4,3194.0,0.8191]
[1736944080985,3.1306,3194.3,3194.0,0.8191]
[1736944082214,3.13067,3194.2,3193.2,9.37549235]
[1736944082401,0.8206,3194.5,3193.3,0.9981]
[1736944082728,3.13094,3194.0,3193.3,0.9981]
[1736944083030,3.13076,3194.2,3193.3,0.9981]
[1736944083322,3.13076,3194.2,3193.5,0.8191]
[1736944085226,3.13095,3194.0,3193.5,0.8191]
[1736944085426,3.13117,3193.7,3193.5,0.8191]
[1736944085596,3.13136,3193.5,3193.0,3.26842135]
[1736944086205,3.13136,3193.5,3192.9,0.7917]
[1736944087928,3.13146,3193.4,3192.9,0.7917]
[1736944088441,0.7858,3193.5,3192.9,0.7917]
[1736944088752,3.13173,3193.2,3192.9,0.7917]
[1736944089265,3.13182,3193.1,3192.9,0.7917]
[1736944091332,3.13158,3193.3,3192.9,0.7917]
[1736944091522,3.13129,3193.6,3192.9,0.7917]
[1736944093356,0.64160221,3193.9,3192.9,0.7917]
[1736944093563,3.13136,3193.5,3192.9,0.7917]
[1736944096016,3.0,3193.8,3192.9,0.7917]
[1736944096358,3.13129,3193.6,3192.9,0.7917]
[1736944099359,3.13138,3193.5,3192.9,0.7917]
[1736944101420,3.13158,3193.3,3192.9,0.7917]
[1736944102272,3.88702,3193.5,3192.9,0.7917]
[1736944102430,3.13142,3193.5,3192.9,0.7917]
[1736944102635,3.13146,3193.4,3192.9,0.7917]
[1736944105161,3.13156,3193.3,3192.9,0.7917]
[1736944107169,3.1315,3193.4,3192.9,0.7917]
[1736944108897,3.0,3193.6,3192.9,0.7917]
[1736944109212,3.13157,3193.3,3192.9,0.7917]
[1736944114816,0.68868,3193.5,3192.9,0.7917]
[1736944115029,3.13166,3193.2,3192.9,0.7917]
[1736944115932,3.13186,3193.0,3192.5,0.8005]
[1736944117211,3.13145,3193.4,3192.5,0.8005]
[1736944117525,3.13177,3193.1,3192.5,0.8005]
[1736944118535,0.8276,3193.5,3192.5,0.8005]
[1736944118854,3.13176,3193.1,3192.5,0.8005]
[1736944119344,3.13176,3193.1,3192.5,1.21462654]
[1736944120041,3.13176,3193.1,3192.5,0.8005]
[1736944121748,3.13165,3193.2,3192.5,0.8005]
[1736944122621,0.62078441,3193.3,3192.5,0.8005]
[1736944122835,3.13215,3192.7,3192.5,0.8005]
[1736944123017,3.13224,3192.6,3192.4,4.2e-06]
[1736944123216,0.313224,3192.6,3192.4,4.2e-06]
[1736944123417,3.13234,3192.5,3192.4,4.2e-06]
[1736944124324,3.13224,3192.6,3192.4,4.2e-06]
[1736944126034,3.0,3192.9,3192.4,4.2e-06]
[1736944126257,3.13213,3192.8,3192.4,4.2e-06]
[1736944126419,3.13176,3193.1,3192.5,0.7726]
[1736944126622,0.62078441,3193.3,3192.5,0.7726]
[1736944126866,3.13185,3193.0,3192.5,0.7726]
[1736944129348,3.0,3193.2,3192.5,0.7726]
[1736944129521,3.13212,3192.8,3192.5,0.7726]
[1736944129853,3.13221,3192.7,3192.5,0.7726]
[1736944130551,3.13221,3192.7,3192.4,4.2e-06]
[1736944131407,3.13234,3192.5,3192.4,4.2e-06]
[1736944131826,3.13215,3192.7,3192.4,4.2e-06]
[1736944133571,3.132,3192.9,3192.4,4.2e-06]
[1736944135577,4.40348441,3193.3,3192.5,0.7808]
[1736944135578,0.62078441,3193.3,3192.5,0.7808]
[1736944135746,3.13137,3193.5,3192.6,0.7808]
[1736944136071,3.13174,3193.2,3192.8,0.7808]
[1736944136378,3.13212,3192.8,3192.5,0.7808]
[1736944137277,3.0,3193.0,3192.4,4.2e-06]
[1736944137435,3.13228,3192.6,3192.4,4.2e-06]
[1736944137772,3.13234,3192.5,3192.4,4.2e-06]
[1736944138341,3.445574,3192.5,3192.4,4.2e-06]
[1736944140493,6.445574,3192.5,3192.4,4.2e-06]
[1736944141596,3.313234,3192.5,3192.4,4.2e-06]
[1736944141768,3.0,3192.5,3192.4,4.2e-06]
[1736944146457,3.13225,3192.6,3192.5,0.7521]
[1736944148177,3.13234,3192.5,3192.4,4.2e-06]
[1736944149112,3.94974,3192.5,3192.4,4.2e-06]
[1736944149776,3.13234,3192.5,3192.4,4.2e-06]
[1736944150881,3.527314,3192.5,3192.4,4.2e-06]
[1736944155778,7.344714,3192.5,3192.4,4.2e-06]
[1736944155983,7.894714,3192.5,3192.4,4.2e-06]
[1736944161187,8.5322387,3192.5,3192.4,4.2e-06]
[1736944163211,0.8174,3191.3,3190.8,3.26842135]
[1736944163417,3.13307,3191.8,3190.8,3.26842135]
[1736944163418,3.13365,3191.2,3190.8,3.26842135]
[1736944163610,3.13365,3191.2,3190.7,0.7571]
[1736944164801,3.0,3191.5,3190.7,0.7571]
[1736944165001,3.1334,3191.5,3190.7,0.7571]
[1736944167202,3.1334,3191.5,3190.8,0.389127]
[1736944167417,3.1334,3191.5,3190.9,0.7521]
[1736944168621,3.13342,3191.4,3190.9,0.7521]
[1736944172364,3.75008631,3191.6,3190.9,0.7521]
[1736944173143,0.8174,3192.2,3191.0,0.78343687]
[1736944173346,3.13282,3192.1,3191.2,0.7521]
[1736944173559,3.13281,3192.1,3191.3,0.7521]
[1736944173895,3.13284,3192.0,3191.4,0.177]
[1736944174054,0.8174,3192.0,3191.4,0.177]
[1736944174258,3.0,3192.3,3191.4,0.177]
[1736944174456,3.0,3192.1,3191.5,0.7829]
[1736944174664,3.13285,3192.0,3191.5,0.7829]
[1736944175936,3.13313,3191.7,3191.5,0.7829]
[1736944176542,3.13304,3191.8,3191.5,0.7829]
[1736944176751,3.13287,3192.0,3191.5,0.7829]
[1736944177148,3.13269,3192.2,3191.5,0.7829]
[1736944177676,3.13239,3192.5,3191.7,0.8081]
[1736944177881,3.1322,3192.7,3191.9,0.8081]
[1736944178662,3.13199,3192.9,3191.9,3.94102]
[1736944178876,3.13199,3192.9,3192.1,0.8081]
[1736944179239,3.0,3192.8,3192.1,0.8081]
[1736944179442,3.13199,3192.9,3192.3,0.8081]
[1736944179738,0.62882342,3193.0,3192.3,0.8081]
[1736944179944,3.0,3193.1,3192.3,0.9851]
[1736944180166,3.13185,3193.0,3192.3,0.9851]
[1736944180368,3.13185,3193.0,3192.3,1.39999733]
[1736944180577,3.13185,3193.0,3192.4,0.8081]
[1736944186253,3.64269683,3193.3,3192.4,0.8081]
[1736944186254,0.64269683,3193.3,3192.4,0.8081]
[1736944186591,3.13176,3193.1,3192.4,0.8081]
[1736944188951,3.13176,3193.1,3192.4,0.83942191]
[1736944189101,3.1316,3193.3,3192.4,0.83942191]
[1736944189302,3.13167,3193.2,3192.6,0.824]
[1736944195210,0.63639072,3193.4,3192.6,0.824]
[1736944195591,3.13141,3193.5,3192.7,0.824]
[1736944195803,3.13141,3193.5,3192.7,0.85531956]
[1736944196117,3.13141,3193.5,3192.7,0.824]
[1736944196118,0.8028,3193.5,3192.7,0.824]
[1736944196330,3.13155,3193.3,3192.7,0.824]
[1736944196629,3.13195,3192.9,3192.7,0.824]
[1736944198110,3.13195,3192.9,3192.0,3.13276]
[1736944198314,3.13205,3192.8,3192.2,0.824]